bitfinex-derivatives/quotes_ETHF0:USTF0_20250923
["timestamp","ask_amount","ask_price","bid_price","bid_amount"]
[1758646787804,0.5247,4195.9,4195.8,0.68454]
[1758646788102,0.9254,4195.9,4195.8,1.05594]
[1758646788305,1.35413,4195.9,4195.8,0.6272]
[1758646788493,1.35413,4195.9,4195.8,1.05594]
[1758646788696,0.9254,4195.9,4195.8,1.05594]
[1758646789003,0.9254,4195.9,4195.8,1.32074]
[1758646789196,1.35413,4195.9,4195.8,1.32074]
[1758646789904,1.35413,4195.9,4195.8,1.05594]
[1758646790212,1.35413,4195.9,4195.0,0.1563]
[1758646790213,1.99724,4195.9,4195.0,0.1563]
[1758646790405,1.35416,4195.6,4195.5,0.42877]
[1758646790604,0.5247,4195.3,4195.2,0.6272]
[1758646790903,0.9254,4195.3,4195.2,0.6272]
[1758646791206,0.9254,4195.3,4195.2,1.056]
[1758646792209,0.9254,4195.3,4195.2,1.3208]
[1758646792409,0.5247,4195.3,4195.2,1.3208]
[1758646793700,0.914,4195.3,4195.2,1.3208]
[1758646793900,0.5247,4195.3,4195.2,1.3208]
[1758646794707,0.914,4195.3,4195.2,1.3208]
[1758646795299,0.914,4195.3,4195.2,0.892]
[1758646795597,0.914,4195.3,4195.0,0.1563]
[1758646795598,0.5009,4194.6,4194.5,1.44608]
[1758646796203,0.5009,4194.6,4194.5,1.0172]
[1758646796511,1.31907,4194.6,4194.5,1.0172]
[1758646796710,1.31907,4194.6,4194.5,0.8658]
[1758646797607,0.68087,4194.6,4194.3,1.0326]
[1758646797804,0.92979,4194.4,4194.3,0.6037]
[1758646798104,1.31909,4194.4,4194.3,0.6037]
[1758646799007,1.46153,4194.4,4193.7,0.7555]
[1758646799202,4.52694,4193.9,4193.8,0.6037]
[1758646799802,4.52694,4193.9,4193.8,0.8658]
[1758646800005,4.52694,4193.9,4193.8,0.6037]
[1758646800405,0.8902,4193.6,4193.5,1.29478]
[1758646800610,0.8902,4193.6,4193.5,0.8658]
[1758646800810,0.8902,4193.6,4193.5,0.6037]
[1758646801115,0.8902,4193.3,4193.2,0.67341]
[1758646801616,0.5009,4193.3,4193.2,1.29481]
[1758646801801,0.5009,4193.3,4193.2,0.93551]
[1758646802004,0.8902,4193.3,4193.2,0.93551]
[1758646802409,0.8902,4193.3,4193.2,1.29481]
[1758646802600,3.2078,4193.4,4193.3,0.8658]
[1758646804413,3.4594,4193.4,4193.3,1.2948]
[1758646804607,3.2078,4193.4,4193.3,1.2948]
[1758646804807,3.2078,4194.0,4193.9,1.29474]
[1758646805210,3.2078,4194.0,4193.8,0.252]
[1758646805404,3.2078,4194.0,4193.9,0.57454]
[1758646806104,0.1462,4194.5,4194.0,1.07232]
[1758646806308,0.5355,4194.5,4194.4,0.1456]
[1758646806511,0.7871,4194.5,4194.4,0.57449]
[1758646807518,0.5355,4194.5,4194.4,0.57449]
[1758646807710,0.1462,4195.0,4194.4,0.4421]
[1758646807904,0.5355,4195.0,4194.9,0.1911]
[1758646808310,0.5355,4195.0,4194.9,0.3966]
[1758646808515,0.5355,4195.0,4194.9,0.4421]
[1758646809020,0.3893,4195.2,4195.1,0.1911]
[1758646809221,0.7871,4194.5,4194.4,3.70949]
[1758646809418,1.0364,4194.5,4194.4,3.2806]
[1758646809812,1.0364,4194.5,4193.5,3.2533]
[1758646810020,0.8902,4193.8,4193.7,0.50175]
[1758646810516,0.8902,4193.8,4193.7,0.57455]
[1758646810721,0.8902,4193.8,4193.7,0.50175]
[1758646810915,0.8902,4193.8,4193.7,0.0728]
[1758646811111,0.1462,4193.5,4193.4,0.0728]
[1758646811318,1.0364,4193.5,4193.4,0.3238]
[1758646811617,1.0364,4193.5,4193.4,0.75278]
[1758646811822,0.5355,4193.5,4193.4,0.89918]
[1758646812015,0.7958,4194.0,4193.9,0.66454]
[1758646812210,1.0605,4194.0,4193.9,0.1178]
[1758646812416,0.6693,4194.0,4193.5,3.2078]
[1758646812727,0.9143,4193.7,4193.6,0.251]
[1758646813113,0.9143,4193.7,4193.0,3.2078]
[1758646813114,0.1503,4193.5,4193.2,0.42901]
[1758646813318,0.1503,4193.5,4193.0,3.2078]
[1758646813319,0.9143,4193.1,4193.0,3.75463]
[1758646813514,0.9143,4193.1,4193.0,3.3256]
[1758646813725,0.9143,4193.1,4193.0,3.2078]
[1758646814118,0.1503,4193.0,4192.9,0.68003]
[1758646814317,1.0646,4193.0,4192.9,0.79783]
[1758646814518,1.0646,4193.0,4192.9,0.3688]
[1758646814821,1.0646,4193.0,4192.4,3.2078]
[1758646814822,0.3912,4192.9,4192.8,0.68005]
[1758646815125,0.9143,4192.9,4192.8,0.79785]
[1758646815721,0.9143,4192.9,4192.8,0.3688]
[1758646815915,0.6496,4192.9,4192.8,0.4866]
[1758646816116,0.9143,4192.9,4192.8,0.4866]
[1758646816322,0.9143,4192.9,4192.8,0.251]
[1758646817121,0.6496,4192.9,4192.8,0.4866]
[1758646817321,0.3912,4193.2,4193.1,0.2356]
[1758646817513,0.3912,4193.2,4193.1,0.66462]
[1758646818221,0.6496,4193.2,4193.1,0.66462]
[1758646818423,0.9143,4193.2,4193.1,0.66462]
[1758646818619,0.5231,4192.5,4192.4,0.54689]
[1758646818928,1.0646,4192.5,4192.4,0.68009]
[1758646819427,1.0646,4192.5,4192.4,0.251]
[1758646820513,0.6734,4192.5,4192.1,0.251]
[1758646820729,0.9143,4192.2,4192.1,0.68012]
[1758646821121,0.9143,4192.2,4192.1,0.251]
[1758646821322,0.9143,4192.2,4192.1,0.3688]
[1758646821522,0.9143,4192.2,4192.1,0.251]
[1758646821723,0.9143,4192.2,4191.8,3.63695]
[1758646821922,0.1503,4192.0,4191.8,3.88795]
[1758646822125,0.9143,4191.9,4191.8,0.251]
[1758646822428,0.9143,4191.9,4191.7,0.42916]
[1758646822720,0.9143,4191.4,4191.3,4.00579]
[1758646822926,0.9143,4191.4,4191.3,4.12359]
[1758646823317,0.9143,4191.4,4191.3,3.2078]
[1758646823724,0.9143,4191.4,4191.3,3.3176]
[1758646825625,0.9143,4191.4,4191.3,3.2078]
[1758646825830,0.42,4191.0,4190.9,0.2196]
[1758646826131,0.42,4191.0,4190.0,1.07335]
[1758646826132,0.6914,4191.0,4190.7,0.251]
[1758646826429,0.9118,4190.8,4190.7,0.251]
[1758646827223,0.1533,4190.5,4190.4,0.68029]
[1758646827536,1.0651,4190.5,4190.4,0.251]
[1758646828031,0.2667,4190.3,4190.2,3.63711]
[1758646828224,0.9118,4190.3,4190.2,3.63711]
[1758646828428,0.9118,4190.3,4190.2,3.74691]
[1758646829034,0.9118,4190.3,4190.2,3.85671]
[1758646833133,0.9118,4190.3,4190.2,3.4274]
[1758646833339,0.9118,4190.3,4190.2,3.5686]
[1758646833544,0.9118,4190.3,4190.2,3.2078]
[1758646834038,0.42,4190.0,4189.9,0.1098]
[1758646834240,1.0651,4190.0,4189.9,0.1098]
[1758646834838,1.0651,4190.0,4189.9,0.53915]
[1758646836136,1.0651,4190.0,4189.9,0.1098]
[1758646836330,1.49444,4190.0,4189.8,0.251]
[1758646836534,0.3737,4189.9,4189.7,3.88817]
[1758646836835,0.9118,4189.8,4189.7,3.88817]
[1758646837136,0.9118,4189.8,4189.7,0.3608]
[1758646837341,0.5381,4189.2,4189.1,3.2078]
[1758646837543,0.9118,4189.2,4189.1,3.3176]
[1758646837737,0.9118,4189.2,4189.1,3.85683]
[1758646838144,0.3737,4189.2,4189.1,3.85683]
[1758646838443,0.9118,4189.2,4189.1,3.2078]
[1758646838639,1.34122,4189.2,4189.1,3.3176]
[1758646838843,1.34122,4189.2,4188.9,0.251]
[1758646838844,1.0651,4189.0,4188.9,0.1098]
[1758646839040,1.0651,4189.0,4188.9,0.79025]
[1758646839844,1.0651,4189.0,4188.9,0.3608]
[1758646840143,0.7937,4189.0,4188.9,0.90005]
[1758646841737,1.0651,4189.0,4188.9,0.4706]
[1758646842044,1.0651,4189.0,4188.9,0.251]
[1758646842241,1.0651,4189.0,4188.5,3.2078]
[1758646842440,1.0651,4188.5,4188.4,0.1098]
[1758646842636,1.0651,4188.5,4188.4,0.3608]
[1758646842833,1.0651,4188.5,4188.4,0.4706]
[1758646843037,0.527,4188.5,4188.4,0.9001]
[1758646843235,0.7937,4188.5,4188.4,0.9001]
[1758646843646,0.2667,4188.9,4188.8,0.53925]
[1758646843948,0.2667,4188.9,4188.8,0.64905]
[1758646844250,0.9118,4188.9,4188.8,0.2196]
[1758646845045,0.9118,4188.9,4188.8,0.64906]
[1758646845749,0.3737,4188.9,4188.8,0.71766]
[1758646846143,0.3737,4188.9,4188.8,0.64906]
[1758646846547,0.1533,4189.0,4188.9,0.42945]
[1758646846747,0.1533,4189.0,4188.9,0.71765]
[1758646846951,0.527,4189.0,4188.9,0.71765]
[1758646847759,0.6404,4189.4,4189.3,0.2196]
[1758646847945,0.9118,4189.4,4189.3,0.2196]
[1758646848450,0.9118,4189.4,4189.3,0.1098]
[1758646848653,0.9118,4189.1,4189.0,0.251]
[1758646848842,0.9118,4188.6,4188.3,0.42951]
[1758646849047,0.9118,4188.1,4188.0,3.74714]
[1758646849242,0.9118,4188.1,4188.0,3.6784]
[1758646849753,0.9118,4188.1,4188.0,4.10794]
[1758646851148,0.9118,4188.1,4188.0,3.6784]
[1758646851549,0.3737,4188.1,4188.0,4.17654]
[1758646851854,0.7937,4188.5,4188.4,0.2196]
[1758646852148,1.0651,4188.5,4188.1,0.42952]
[1758646852456,0.6404,4188.1,4188.0,4.10794]
[1758646852946,0.6404,4188.1,4188.0,3.5686]
[1758646852947,0.9118,4188.1,4188.0,3.5686]
[1758646853354,0.9118,4188.1,4188.0,3.99814]
[1758646854347,0.9118,4188.1,4188.0,4.08644]
[1758646855457,0.3737,4188.1,4188.0,4.14164]
[1758646856255,0.6717,4189.0,4188.9,0.60605]
[1758646856448,0.6717,4189.0,4188.9,0.1766]
[1758646856653,1.0743,4189.0,4188.9,0.0883]
[1758646857561,1.0743,4189.0,4188.7,0.68047]
[1758646857562,0.6717,4189.0,4188.7,0.68047]
[1758646857857,0.921,4188.8,4188.7,0.76877]
[1758646858253,0.921,4188.8,4188.7,0.3393]
[1758646858453,0.1516,4188.5,4188.2,0.42952]
[1758646858660,0.4026,4188.3,4188.2,0.85712]
[1758646858860,0.4026,4188.3,4188.2,0.60612]
[1758646859158,0.6681,4188.3,4188.2,0.85712]
[1758646860549,0.4026,4188.3,4188.2,0.91232]
[1758646861152,0.5542,4188.5,4188.4,0.6061]
[1758646861353,0.8197,4188.5,4188.4,0.8571]
[1758646862065,0.5542,4188.5,4188.4,0.8571]
[1758646862257,0.5542,4188.5,4188.4,0.9123]
[1758646863965,0.5559,4189.0,4188.9,0.66125]
[1758646864259,1.0743,4189.0,4188.9,4.06485]
[1758646864460,0.67,4188.5,4188.4,0.5178]
[1758646864765,1.0726,4188.5,4188.4,0.7688]
[1758646865359,0.5542,4188.5,4188.4,0.8571]
[1758646865559,1.0726,4188.5,4188.4,0.8571]
[1758646865862,1.0726,4188.5,4188.4,0.251]
[1758646867664,1.0726,4188.5,4188.4,0.6805]
[1758646867856,1.0726,4188.5,4188.4,0.251]
[1758646868056,1.0726,4188.5,4188.4,0.6805]
[1758646868359,0.4026,4188.4,4188.3,3.2078]
[1758646868558,0.921,4188.4,4188.3,3.2078]
[1758646868758,0.921,4188.4,4188.2,0.251]
[1758646868965,1.3505,4188.4,4188.2,0.251]
[1758646869267,1.50214,4188.0,4187.9,0.0238786]
[1758646869465,1.0726,4188.0,4187.9,0.0238786]
[1758646869656,1.0726,4188.0,4187.9,0.1121786]
[1758646869965,1.0726,4188.0,4187.9,0.0238786]
[1758646870169,1.50214,4188.0,4187.9,0.0238786]
[1758646870866,1.0726,4188.0,4187.9,0.0238786]
[1758646871864,1.0726,4188.0,4187.9,0.1748786]
[1758646872060,1.0726,4188.0,4187.9,0.0993786]
[1758646872265,1.0726,4188.0,4187.9,0.0238786]
[1758646872657,0.5542,4188.0,4187.9,0.1748786]
[1758646872859,0.8121,4188.0,4187.9,0.1748786]
[1758646873056,0.3624,4188.4,4188.3,0.50501]
[1758646873263,0.3624,4188.4,4188.3,0.83151]
[1758646873465,0.6203,4188.4,4188.3,0.83151]
[1758646874163,0.3624,4188.4,4188.3,0.83151]
[1758646874363,0.8641,4188.4,4188.3,0.251]
[1758646874665,0.7765,4188.0,4187.9,0.6044286]
[1758646874861,0.7719,4188.5,4188.4,0.5805]
[1758646875269,1.0157,4188.5,4188.4,0.151]
[1758646875470,1.0157,4188.5,4188.3,0.25]
[1758646876269,1.44519,4188.5,4188.3,0.25]
[1758646877166,0.8641,4188.4,4188.3,0.25]
[1758646877572,0.8641,4188.4,4188.2,0.42952]
[1758646878365,0.8641,4188.4,4187.9,0.0238786]
[1758646878366,0.8641,4188.4,4188.0,0.42953]
[1758646878570,0.1562,4188.0,4187.9,0.0238786]
[1758646878762,1.0203,4188.0,4187.9,0.4534286]
[1758646879069,1.44984,4188.0,4187.9,0.0238786]
[1758646879871,6.44984,4188.0,4187.9,0.0238786]
[1758646880278,0.5017,4187.4,4187.3,3.2078]
[1758646880575,0.8641,4187.4,4187.3,3.63741]
[1758646881774,0.8641,4187.4,4187.3,3.71291]
[1758646882979,0.8641,4187.4,4187.3,3.2078]
[1758646883170,0.8641,4187.4,4187.3,3.63741]
[1758646884372,0.42961,4187.3,4186.8,0.42966]
[1758646884573,0.42961,4187.3,4185.6,0.00733913]
[1758646884574,0.4297,4186.5,4186.0,0.42974]
[1758646884770,0.8682,4186.1,4186.0,0.42974]
[1758646884966,0.8682,4186.1,4185.8,0.42976]
[1758646885171,1.0246,4186.0,4185.9,0.0673]
[1758646885683,1.0246,4186.0,4185.9,0.49706]
[1758646886782,0.6608,4186.0,4185.7,3.88757]
[1758646886980,0.8682,4185.8,4185.7,3.88757]
[1758646887180,0.8682,4185.8,4185.7,3.4578]
[1758646887482,0.8682,4185.8,4185.7,3.88758]
[1758646887785,0.8682,4185.8,4185.7,3.95488]
[1758646888168,0.8682,4185.8,4185.7,3.5251]
[1758646888374,0.8682,4185.8,4185.7,3.95488]
[1758646888773,0.8682,4185.8,4185.7,3.4578]
[1758646889375,0.42978,4185.7,4185.6,0.00733913]
[1758646889582,0.8682,4185.7,4185.6,0.07463913]
[1758646890175,0.8682,4185.7,4185.6,0.50442913]
[1758646890376,0.8682,4185.7,4185.6,0.07463913]
[1758646890573,0.8682,4185.7,4185.6,0.50442913]
[1758646890773,0.8682,4185.7,4185.6,0.07463913]
[1758646891470,1.29798,4185.7,4185.6,0.00733913]
[1758646892073,0.8682,4185.7,4185.6,0.00733913]
[1758646892278,1.29798,4185.7,4185.6,0.00733913]
[1758646892476,0.8682,4185.7,4185.6,0.00733913]
[1758646893084,1.29798,4185.7,4185.6,0.00733913]
[1758646893480,0.8682,4185.7,4185.6,0.00733913]
[1758646893783,0.8682,4185.7,4185.6,0.07463913]
[1758646894479,0.8682,4185.7,4185.6,0.00733913]
[1758646894675,0.8682,4185.7,4185.6,0.50442913]
[1758646894878,0.8682,4185.7,4185.6,0.14193913]
[1758646895375,0.8682,4185.7,4185.6,0.07463913]
[1758646895977,0.8682,4185.7,4185.6,0.57172913]
[1758646896685,0.3638,4185.7,4185.6,0.61382913]
[1758646896879,0.1564,4186.0,4185.9,0.56436]
[1758646897185,0.8682,4186.2,4186.1,0.56434]
[1758646897481,0.1564,4186.5,4186.4,0.42971]
[1758646897679,0.5202,4186.5,4186.4,0.60641]
[1758646898184,3.6083,4187.0,4186.9,0.56425]
[1758646898481,0.4005,4187.0,4186.9,0.56425]
[1758646898878,0.7643,4187.0,4186.9,0.56425]
[1758646899275,0.5202,4187.0,4186.9,8.77205]
[1758646899482,1.0246,4187.0,4186.9,3.2078]
[1758646900074,1.0246,4186.5,4186.4,3.2078]
[1758646903183,1.0246,4186.5,4186.4,3.2751]
[1758646903373,1.0246,4186.5,4186.4,3.3424]
[1758646904479,1.0246,4186.5,4186.4,3.2078]
[1758646905082,1.0246,4186.0,4185.9,3.4578]
[1758646905284,1.0246,4186.0,4185.9,3.5251]
[1758646905991,1.0246,4186.0,4185.9,3.4578]
[1758646906287,1.45435,4186.0,4185.5,0.4298]
[1758646906585,0.42976,4185.9,4185.4,3.2078]
[1758646906785,1.0246,4186.0,4185.4,3.2078]
[1758646906786,1.29798,4185.7,4185.4,3.2078]
[1758646907384,0.8682,4185.7,4185.4,3.2078]
[1758646908582,0.8682,4185.7,4185.0,10.0]
[1758646908782,0.8682,4185.7,4185.1,0.42984]
[1758646909079,0.8682,4185.7,4185.2,0.42983]
[1758646910492,1.1182,4185.7,4185.0,10.42984]
[1758646910696,1.1182,4185.7,4185.2,0.42983]
[1758646911191,1.1182,4185.7,4185.0,10.0]
[1758646911384,1.1182,4185.7,4185.1,0.42983]
[1758646911690,1.1182,4185.7,4185.2,0.42983]
[1758646911991,1.1182,4185.7,4185.3,0.42982]
[1758646912692,1.1182,4185.7,4185.1,0.42983]
[1758646912893,1.1182,4185.7,4185.3,0.42982]
[1758646913193,1.1182,4185.7,4185.4,0.42981]
[1758646913383,1.1182,4185.7,4185.3,0.42981]
[1758646913581,1.1182,4185.7,4185.0,10.0]
[1758646913582,1.54798,4185.7,4185.1,0.42983]
[1758646913788,1.54798,4185.7,4185.0,10.0]
[1758646914193,1.54798,4185.7,4185.2,0.42982]
[1758646914489,1.54798,4185.7,4185.3,0.42981]
[1758646914690,0.58611,4185.5,4185.0,10.42985]
[1758646914892,0.8618,4185.1,4185.0,10.42985]
[1758646915888,0.8618,4185.1,4185.0,10.52245]
[1758646916386,0.8618,4185.1,4185.0,10.47615]
[1758646916696,0.8618,4185.1,4185.0,10.52245]
[1758646917193,0.3633,4185.1,4185.0,10.55135]
[1758646917383,0.1563,4185.5,4185.4,0.42981]
[1758646917587,0.1563,4185.5,4185.4,0.55131]
[1758646917796,0.2428,4185.8,4185.7,0.52238]
[1758646917991,0.8618,4185.8,4185.7,0.47608]
[1758646918396,0.8618,4185.8,4185.7,0.52238]
[1758646920490,1.0181,4185.5,4185.4,3.63761]
[1758646920686,0.5196,4185.5,4185.4,3.73021]
[1758646921391,0.7624,4185.5,4185.4,3.73021]
[1758646922491,1.4479,4185.5,4185.1,0.25]
[1758646922690,0.8618,4185.2,4185.1,0.25]
[1758646923087,1.29163,4185.2,4185.1,0.25]
[1758646923591,1.29163,4185.2,4185.0,10.0]
[1758646923898,1.29164,4185.1,4185.0,10.0]
[1758646924195,0.8618,4185.1,4185.0,10.0]
[1758646924393,0.8618,4185.1,4185.0,10.47615]
[1758646924591,0.8618,4185.1,4185.0,10.0463]
[1758646924899,0.8618,4185.1,4185.0,10.0]
[1758646925496,1.29164,4185.1,4185.0,10.0]
[1758646928597,1.07471,4184.7,4184.0,0.42994]
[1758646928797,0.2428,4183.8,4183.7,0.0463]
[1758646929002,0.1563,4184.0,4183.9,0.0926]
[1758646929601,0.7624,4184.0,4183.9,0.0926]
[1758646930003,1.0181,4184.0,4183.9,0.0926]
[1758646930200,1.44805,4184.0,4183.9,0.0926]
[1758646930502,0.8618,4183.7,4183.6,3.73039]
[1758646930702,0.8618,4183.7,4183.6,3.3004]
[1758646932304,1.29178,4183.7,4183.6,0.1672]
[1758646933006,1.10082,4183.3,4183.2,0.5844]
[1758646933305,1.53725,4183.0,4182.9,0.19110714]
[1758646933601,1.1072,4183.0,4182.9,0.19110714]
[1758646934000,1.1072,4183.0,4182.9,0.02390714]
[1758646934302,1.1072,4183.0,4181.6,3.2078]
[1758646934303,0.43017,4181.9,4181.6,3.2078]
[1758646934496,0.1616,4182.0,4181.6,3.375]
[1758646934497,0.535,4181.7,4181.6,3.375]
[1758646934697,0.9456,4181.7,4181.6,3.375]
[1758646935097,0.9456,4181.7,4181.6,0.1672]
[1758646935301,0.9456,4181.3,4181.2,0.3344]
[1758646935506,0.9456,4181.3,4181.2,0.1672]
[1758646935701,0.4106,4181.2,4181.0,3.2078]
[1758646935909,0.9456,4181.1,4181.0,3.375]
[1758646936405,0.9456,4181.1,4181.0,0.1672]
[1758646936806,0.6708,4180.7,4180.6,0.76469]
[1758646937006,0.4106,4180.7,4180.6,0.3344]
[1758646937603,0.4106,4180.9,4180.8,0.43027]
[1758646937805,0.4106,4180.9,4180.8,0.3344]
[1758646938902,0.1616,4181.0,4180.9,0.76467]
[1758646939099,0.4106,4181.3,4181.2,0.3344]
[1758646940113,0.6708,4181.3,4181.2,0.3344]
[1758646941401,0.9456,4181.3,4181.2,0.3344]
[1758646941812,0.4106,4181.2,4181.1,3.2078]
[1758646942110,0.9456,4181.2,4181.1,3.2078]
[1758646942313,0.9456,4180.9,4180.8,0.25]
[1758646942512,0.9456,4180.9,4180.8,0.4172]
[1758646944098,0.9456,4180.9,4180.8,0.25]
[1758646944501,0.9456,4180.9,4180.5,3.2078]
[1758646944502,0.3938,4180.8,4180.5,3.2078]
[1758646944700,0.9484,4180.6,4180.5,3.2078]
[1758646944914,0.9484,4180.6,4180.5,3.5246]
[1758646946511,0.3938,4180.9,4180.8,0.3168]
[1758646946718,0.6769,4180.9,4180.8,0.74708]
[1758646947013,0.9484,4180.9,4180.8,0.58868]
[1758646947209,0.9484,4180.9,4180.8,0.74708]
[1758646947415,0.3938,4180.9,4180.8,0.74708]
[1758646947814,0.3938,4180.9,4180.8,0.84608]
[1758646948817,0.3938,4180.9,4180.8,0.1584]
[1758646948818,0.9484,4180.9,4180.8,0.1584]
[1758646949019,0.5546,4180.6,4180.5,3.2078]
[1758646949317,0.9484,4180.6,4180.5,3.5246]
[1758646949518,0.3938,4180.6,4180.5,3.5246]
[1758646949817,1.11,4181.0,4180.9,0.3168]
[1758646950020,1.11,4181.0,4180.8,0.43028]
[1758646950209,0.5554,4181.0,4180.9,0.3168]
[1758646950608,0.3938,4181.4,4181.3,0.74703]
[1758646950819,0.3938,4181.8,4181.7,0.4158]
[1758646951014,0.3938,4181.8,4181.7,0.3168]
[1758646951216,0.6769,4181.8,4181.7,0.3168]
[1758646951708,0.3938,4181.8,4181.7,0.3168]
[1758646951908,0.9484,4181.8,4181.6,0.25]
[1758646952116,0.5546,4181.4,4181.3,3.2078]
[1758646952320,0.9484,4181.4,4181.3,3.2078]
[1758646952517,0.5546,4180.7,4180.6,0.5887]
[1758646952812,0.3938,4180.6,4180.5,3.63811]
[1758646953020,0.6769,4180.6,4180.5,3.95491]
[1758646953515,0.1684,4181.0,4180.8,0.43028]
[1758646953717,0.9484,4180.9,4180.8,0.1584]
[1758646954012,0.3938,4180.8,4180.6,0.25]
[1758646954220,0.3938,4180.7,4180.6,0.9971]
[1758646954409,0.5622,4181.0,4180.9,0.74707]
[1758646954614,0.3938,4181.0,4180.9,1.09607]
[1758646954812,0.3938,4181.0,4180.9,0.99707]
[1758646955015,0.4515,4181.5,4181.4,0.1584]
[1758646955325,0.723,4181.5,4181.4,0.3168]
[1758646955521,1.1168,4181.5,4181.1,3.63804]
[1758646955723,0.2831,4181.2,4181.1,3.79644]
[1758646956024,0.6769,4181.2,4181.1,3.79644]
[1758646956313,0.5622,4181.5,4181.4,0.74702]
[1758646956816,0.3938,4181.5,4181.4,1.09602]
[1758646957715,0.3938,4181.5,4181.4,0.99702]
[1758646958016,1.11,4182.0,4181.7,0.43018]
[1758646958217,0.9484,4181.9,4181.4,0.25]
[1758646958516,0.8453,4181.5,4181.4,0.5668]
[1758646959016,0.4447,4182.0,4181.9,0.58857]
[1758646959315,0.3938,4182.4,4181.9,0.84597]
[1758646959511,0.6769,4182.4,4182.3,0.3168]
[1758646959710,0.9484,4182.4,4182.0,0.25]
[1758646959915,0.5546,4182.4,4182.0,0.68015]
[1758646960116,0.3938,4182.3,4182.0,0.25]
[1758646960315,0.6769,4182.3,4182.2,0.1584]
[1758646960521,0.9484,4182.3,4182.0,0.25]
[1758646960813,0.2831,4181.7,4181.6,3.2078]
[1758646961018,0.9484,4181.7,4181.6,3.2078]
[1758646961217,0.9484,4181.3,4181.2,0.25]
[1758646961409,0.9484,4181.3,4181.2,0.4084]
[1758646962321,0.9484,4181.3,4181.2,0.25]
[1758646963717,0.3938,4181.3,4181.2,0.5668]
[1758646963917,0.3938,4181.3,4181.2,0.25]
[1758646963918,0.9484,4181.3,4181.2,0.25]
[1758646964914,0.3938,4181.2,4181.1,3.2078]
[1758646965120,0.9484,4181.2,4181.1,3.2078]
[1758646965322,0.9484,4180.6,4180.5,3.7965]
[1758646965524,0.9484,4180.6,4180.5,4.0465]
[1758646965720,0.9484,4180.6,4180.5,3.2078]
[1758646967630,0.9484,4180.6,4180.5,3.79651]
[1758646968522,0.9484,4180.6,4180.5,3.95491]
[1758646969824,0.6769,4180.6,4180.5,3.95491]
[1758646970023,0.3938,4180.6,4180.5,4.20391]
[1758646970825,0.6769,4180.6,4180.5,4.20391]
[1758646971929,0.3938,4180.6,4180.5,4.20391]
[1758646972828,0.3938,4180.6,4180.5,4.30291]
[1758646973929,0.6728,4180.6,4180.5,4.20391]
[1758646975431,0.9407,4180.6,4180.5,4.20391]
[1758646977129,0.9407,4180.6,4180.5,3.3662]
[1758646977327,0.9407,4180.6,4180.5,3.88711]
[1758646977832,0.9407,4180.6,4180.5,4.02301]
[1758646978420,0.9407,4180.6,4180.5,3.5927]
[1758646978832,0.9407,4180.6,4180.5,3.4568]
[1758646979226,0.9407,4180.6,4180.5,3.88711]
[1758646979732,0.9407,4180.6,4180.5,3.4568]
[1758646979933,0.9407,4180.6,4180.5,4.02301]
[1758646980828,0.9407,4180.6,4180.5,3.88711]
[1758646981026,0.9407,4180.6,4180.5,4.15891]
[1758646981226,0.6728,4180.6,4180.5,4.15891]
[1758646981736,0.1684,4181.0,4180.9,0.43027]
[1758646981936,0.4474,4181.0,4180.9,0.70207]
[1758646982232,0.1684,4181.0,4180.9,0.95107]
[1758646982438,0.5861,4181.0,4180.9,1.03597]
[1758646982633,0.5861,4181.5,4181.4,0.43022]
[1758646982829,0.5861,4181.5,4180.9,0.76417]
[1758646982830,1.133,4181.5,4181.2,0.249]
[1758646983337,1.133,4181.5,4181.0,3.5927]
[1758646983338,0.5469,4181.1,4181.0,3.5927]
[1758646983534,0.9646,4181.1,4181.0,4.02296]
[1758646983834,0.1684,4181.5,4181.4,0.43022]
[1758646984238,0.43022,4181.4,4181.0,3.63806]
[1758646984536,0.9646,4181.1,4181.0,3.4796]
[1758646984735,4.1724,4181.1,4181.0,0.1359]
[1758646985037,4.1724,4181.1,4180.8,0.5208]
[1758646985038,0.9646,4180.9,4180.8,0.5208]
[1758646985438,0.4177,4180.9,4180.8,0.5208]
[1758646985637,0.6967,4180.9,4180.8,0.5208]
[1758646985832,0.1671,4181.0,4180.8,0.6057]
[1758646986133,0.4177,4181.3,4181.0,0.43026]
[1758646986338,0.6967,4181.3,4181.2,0.2718]
[1758646988237,0.5861,4181.5,4181.4,0.3567]
[1758646988438,0.5861,4181.5,4181.4,0.6057]
[1758646988832,3.2078,4182.1,4182.0,0.43016]
[1758646989034,3.6255,4182.1,4182.0,0.70196]
[1758646989233,3.6255,4182.1,4182.0,1.03586]
[1758646989234,0.4177,4182.1,4182.0,1.03586]
[1758646989544,0.8583,4182.5,4182.4,0.70192]
[1758646989745,0.8583,4182.5,4182.4,0.95092]
[1758646989941,0.1671,4182.0,4181.9,0.2718]
[1758646990242,0.714,4182.0,4181.9,0.2718]
[1758646990438,1.1317,4182.0,4181.9,0.2718]
[1758646990838,0.5848,4182.0,4181.9,0.3567]
[1758646991149,0.4177,4182.4,4182.3,0.78683]
[1758646991342,0.4177,4182.4,4182.3,0.70193]
[1758646991547,3.2078,4182.6,4182.5,0.74981]
[1758646991743,3.6084,4182.6,4182.5,0.67371]
[1758646991946,3.8779,4182.6,4182.5,0.67371]
[1758646992244,0.6701,4182.6,4182.5,0.67371]